bitfinex/quotes_BTCUSD_20250530
["timestamp","ask_amount","ask_price","bid_price","bid_amount"]
[1748602879703,0.21047742,105860.0,105850.0,0.40977373]
[1748602879915,0.20103143,105860.0,105850.0,0.47830552]
[1748602880131,0.20103143,105860.0,105850.0,0.65233846]
[1748602880351,0.17889597,105860.0,105850.0,0.43022998]
[1748602880568,0.17689597,105860.0,105850.0,0.43022998]
[1748602880800,0.18634223,105860.0,105850.0,0.43022998]
[1748602881340,0.18534223,105860.0,105850.0,0.62862384]
[1748602881440,0.21726745,105860.0,105850.0,0.67115804]
[1748602881684,0.21726745,105860.0,105850.0,0.68060501]
[1748602881895,0.21726745,105860.0,105850.0,0.64751796]
[1748602882347,0.21726745,105860.0,105850.0,1.05996484]
[1748602882578,0.21726745,105860.0,105850.0,1.09304284]
[1748602882803,0.21726745,105860.0,105850.0,1.09504284]
[1748602883026,0.02833797,105860.0,105850.0,1.17448909]
[1748602883474,0.03778431,105860.0,105850.0,1.18941611]
[1748602884151,0.22671308,105860.0,105850.0,1.17052262]
[1748602884386,0.03778431,105860.0,105850.0,1.17996941]
[1748602884643,0.22671308,105860.0,105850.0,1.17996941]
[1748602885252,0.22671308,105860.0,105850.0,1.48009611]
[1748602885713,0.27421671,105880.0,105870.0,0.56131092]
[1748602885936,0.26477206,105880.0,105870.0,0.40747791]
[1748602886616,0.26477206,105880.0,105870.0,0.39256108]
[1748602887756,0.26477206,105880.0,105870.0,0.39356108]
[1748602888394,0.26477206,105880.0,105870.0,0.39456108]
[1748602888849,0.26477206,105880.0,105870.0,0.39451313]
[1748602889551,0.26477206,105880.0,105870.0,0.39588449]
[1748602890858,0.35582601,105880.0,105870.0,0.39588449]
[1748602891072,0.35582601,105880.0,105870.0,0.38471053]
[1748602892188,0.35582601,105880.0,105870.0,0.04471053]
[1748602892941,0.35582601,105880.0,105870.0,0.04333917]
[1748602892942,0.26477206,105880.0,105870.0,0.04333917]
[1748602893178,0.26477206,105880.0,105870.0,0.05451005]
[1748602893398,0.26477206,105880.0,105870.0,0.05567606]
[1748602893603,0.26477206,105880.0,105870.0,0.05583067]
[1748602894294,0.1889247,105880.0,105870.0,0.46819179]
[1748602894510,0.1889247,105880.0,105870.0,0.46583067]
[1748602894724,0.20778211,105880.0,105870.0,0.66418704]
[1748602894953,0.21722631,105880.0,105870.0,0.68854923]
[1748602895204,0.21722631,105880.0,105870.0,0.67737698]
[1748602895439,0.21722631,105880.0,105870.0,0.68682208]
[1748602895660,0.21722631,105880.0,105870.0,0.69626709]
[1748602895878,0.03777663,105880.0,105870.0,1.19676578]
[1748602896092,0.03777627,105880.0,105870.0,1.19676578]
[1748602896321,0.02833207,105880.0,105870.0,1.19676578]
[1748602896595,0.19831891,105890.0,105880.0,0.23808193]
[1748602896798,0.09473265,105900.0,105890.0,0.58750571]
[1748602897032,0.10417498,105900.0,105890.0,0.60810775]
[1748602897258,0.30247571,105900.0,105890.0,0.60758952]
[1748602897495,0.08528969,105900.0,105890.0,0.62250635]
[1748602897743,0.29303221,105900.0,105890.0,0.61306277]
[1748602898192,0.29303221,105900.0,105890.0,0.61320897]
[1748602898418,0.29303221,105900.0,105890.0,0.61320915]
[1748602898865,0.29303221,105900.0,105890.0,0.61520915]
[1748602899346,0.29303221,105900.0,105890.0,0.62465255]
[1748602899567,0.29303221,105900.0,105890.0,1.02565255]
[1748602900007,0.28358988,105900.0,105890.0,0.99732208]
[1748602900231,0.25202186,105900.0,105890.0,1.01620942]
[1748602900526,0.25202186,105900.0,105890.0,1.0172594]
[1748602901182,0.25202186,105900.0,105890.0,1.01725949]
[1748602901407,0.25202186,105900.0,105890.0,1.02668639]
[1748602901408,0.1983001,105900.0,105890.0,1.02668639]
[1748602901874,0.00944269,105900.0,105890.0,1.02668639]
[1748602902106,0.03777004,105900.0,105890.0,1.03612952]
[1748602902337,0.03777004,105900.0,105890.0,1.02658097]
[1748602902338,0.23607032,105900.0,105890.0,1.02658097]
[1748602902567,0.29303311,105900.0,105890.0,0.99654521]
[1748602902799,0.28359042,105900.0,105890.0,0.80766997]
[1748602903058,0.28359042,105900.0,105890.0,0.80937514]
[1748602903305,0.27414764,105900.0,105890.0,1.00769405]
[1748602903546,0.26470477,105900.0,105890.0,0.80937514]
[1748602903791,0.26470477,105900.0,105890.0,1.10257514]
[1748602904294,0.26470477,105900.0,105890.0,1.08765831]
[1748602904524,0.26470477,105900.0,105890.0,1.10257514]
[1748602904774,0.26470477,105900.0,105890.0,0.80937514]
[1748602905015,0.26470477,105900.0,105890.0,1.08769831]
[1748602905273,0.26470477,105900.0,105890.0,0.74769831]
[1748602905525,0.26470477,105900.0,105890.0,0.42322496]
[1748602905795,0.26470477,105900.0,105890.0,0.02322496]
[1748602906036,0.26470477,105900.0,105890.0,0.01207009]
[1748602907331,0.26470477,105900.0,105890.0,0.05748565]
[1748602908714,0.26470477,105900.0,105890.0,0.05765128]
[1748602908945,0.26470477,105900.0,105890.0,0.05859437]
[1748602909457,0.26470477,105900.0,105890.0,0.4135112]
[1748602909690,0.26470477,105900.0,105890.0,0.07115051]
[1748602909912,0.26470477,105900.0,105890.0,0.04161121]
[1748602910135,0.26470477,105900.0,105890.0,0.02672308]
[1748602910585,0.26470477,105900.0,105890.0,0.04163991]
[1748602910836,0.26470477,105900.0,105890.0,0.02662188]
[1748602911766,0.38665872,105900.0,105890.0,0.02426118]
[1748602912283,0.38665872,105900.0,105890.0,0.01309037]
[1748602915800,0.38665872,105900.0,105890.0,0.00415372]
[1748602916034,0.41500772,105900.0,105890.0,0.00415372]
[1748602916958,0.41500772,105900.0,105890.0,0.00315372]
[1748602918296,0.41500772,105900.0,105890.0,0.00115372]
[1748602918563,0.41600772,105900.0,105890.0,0.00115372]
[1748602919011,0.43054857,105900.0,105890.0,0.00115372]
[1748602920667,0.43054857,105900.0,105890.0,0.00031183]
[1748602920916,0.77054857,105900.0,105890.0,0.00031183]
[1748602921185,0.77816145,105900.0,105890.0,0.00031183]
[1748602921419,0.77815976,105900.0,105890.0,0.00031183]
[1748602921662,1.26606047,105900.0,105890.0,0.00031183]
[1748602921898,1.26506049,105900.0,105890.0,0.00031183]
[1748602922387,1.26706049,105900.0,105890.0,0.00031183]
[1748602922626,1.26044857,105900.0,105890.0,0.00031183]
[1748602922854,1.26705585,105900.0,105890.0,0.00031183]
[1748602923083,1.26505585,105900.0,105890.0,0.00031183]
[1748602923310,1.26705585,105900.0,105890.0,0.00031183]
[1748602924008,1.26805176,105900.0,105890.0,0.00031183]
[1748602924236,0.24024885,105860.0,105850.0,0.001]
[1748602924463,0.7160628,105860.0,105850.0,0.00148895]
[1748602924963,0.7444218,105860.0,105850.0,0.00148895]
[1748602927303,0.7454218,105860.0,105850.0,0.00148895]
[1748602927526,0.74504809,105860.0,105850.0,0.00148895]
[1748602927826,0.36052809,105860.0,105850.0,0.00148895]
[1748602928161,0.32792809,105860.0,105850.0,0.00148895]
[1748602928411,0.71256809,105860.0,105850.0,0.00148895]
[1748602928883,0.38965294,105860.0,105850.0,0.00148895]
[1748602929099,0.68401294,105860.0,105850.0,0.00148895]
[1748602930457,0.20831899,105860.0,105850.0,0.04110609]
[1748602930677,0.20831899,105860.0,105850.0,0.03218895]
[1748602930893,0.20831899,105860.0,105850.0,0.04110696]
[1748602933112,0.20820813,105860.0,105850.0,0.04110696]
[1748602934022,0.20820813,105860.0,105850.0,0.06013019]
[1748602937150,0.29909313,105860.0,105850.0,0.02943019]
[1748602937374,0.4069458,105860.0,105850.0,0.01042301]
[1748602937586,0.4069458,105860.0,105850.0,0.00148895]
[1748602938678,0.4069458,105860.0,105850.0,0.00165566]
[1748602939399,0.4986258,105860.0,105850.0,0.00165566]
[1748602940705,0.7927058,105860.0,105850.0,0.00165566]
[1748602940914,0.7605058,105860.0,105850.0,0.00165566]
[1748602942374,0.7605058,105860.0,105850.0,0.01060939]
[1748602942803,0.7770058,105860.0,105850.0,0.01060939]
[1748602943225,0.7921058,105860.0,105850.0,0.01060939]
[1748602944269,0.7921058,105860.0,105850.0,0.00960939]
[1748602945984,0.7921058,105860.0,105850.0,0.00962622]
[1748602946423,0.7921058,105860.0,105850.0,0.00962674]
[1748602949714,0.7921058,105860.0,105850.0,0.01839969]
[1748602950125,0.79873344,105860.0,105850.0,0.01839971]
[1748602950336,0.79873349,105860.0,105850.0,0.01841235]
[1748602950569,0.79873349,105860.0,105850.0,0.01841231]
[1748602950780,0.79873357,105860.0,105850.0,0.01841231]
[1748602951627,0.79873357,105860.0,105850.0,0.01841453]
[1748602952075,0.79873526,105860.0,105850.0,0.01841452]
[1748602952279,0.79873526,105860.0,105850.0,0.01841456]
[1748602952897,0.79873526,105860.0,105850.0,0.00963939]
[1748602953187,0.7921058,105860.0,105850.0,0.01841426]
[1748602953402,0.79873506,105860.0,105850.0,0.01841426]
[1748602953618,0.79873487,105860.0,105850.0,0.01841393]
[1748602954506,0.79873487,105860.0,105850.0,0.01841401]
[1748602954720,0.79873487,105860.0,105850.0,0.01841362]
[1748602955364,0.72288751,105860.0,105850.0,0.0184129]
[1748602955584,0.72248785,105860.0,105850.0,0.01841293]
[1748602955802,0.72248785,105860.0,105850.0,0.01841296]
[1748602956010,0.33712785,105860.0,105850.0,0.01841296]
[1748602956225,0.39720785,105860.0,105850.0,0.05288566]
[1748602956445,0.30552785,105860.0,105850.0,0.06818566]
[1748602956659,0.29889844,105860.0,105850.0,0.05515583]
[1748602957115,0.29889844,105860.0,105850.0,0.06638501]
[1748602957340,0.20784449,105860.0,105850.0,0.05515583]
[1748602958712,0.20784449,105860.0,105850.0,0.05515237]
[1748602960257,0.20784449,105860.0,105850.0,0.41407251]
[1748602962907,0.20784449,105860.0,105850.0,0.41407169]
[1748602963342,0.20784449,105860.0,105850.0,0.4252949]
[1748602964913,0.20784449,105860.0,105850.0,0.0852949]
[1748602966008,0.28369185,105860.0,105850.0,0.0852949]
[1748602966232,0.28369185,105860.0,105850.0,0.07037807]
[1748602966446,0.3747458,105860.0,105850.0,0.03977807]
[1748602967364,0.3747458,105860.0,105850.0,0.04875572]
[1748602967589,0.62773863,105860.0,105850.0,0.03977666]
[1748602971573,0.62773863,105860.0,105850.0,0.0397785]
[1748602975854,0.62773863,105860.0,105850.0,0.03978436]
[1748602977960,0.75063863,105860.0,105850.0,0.00963724]
[1748602980362,0.75063863,105860.0,105850.0,0.00963911]
[1748602982096,1.09063863,105860.0,105850.0,0.00963911]
[1748602982819,0.75063863,105860.0,105850.0,0.00963911]
[1748602983025,0.67479127,105860.0,105850.0,0.00963911]
[1748602983691,0.55189127,105860.0,105850.0,0.00963911]
[1748602983986,0.55189127,105860.0,105850.0,0.04053911]
[1748602984219,0.55189127,105860.0,105850.0,0.05176842]
[1748602984705,0.46083732,105860.0,105850.0,0.05176842]
[1748602985176,0.46083732,105860.0,105850.0,0.06668525]
[1748602986039,0.46083732,105860.0,105850.0,0.05545594]
[1748602986279,0.46083732,105860.0,105850.0,0.05781756]
[1748602987188,0.46083732,105860.0,105850.0,0.41678819]
[1748602987409,0.46083732,105860.0,105850.0,0.41442657]
[1748602987832,0.46083732,105860.0,105850.0,0.40544312]
[1748602988046,0.46083732,105860.0,105850.0,0.4144254]
[1748602988261,0.46083732,105860.0,105850.0,0.0744254]
[1748602990932,0.46083732,105860.0,105850.0,0.4144254]
[1748602991362,0.46083732,105860.0,105850.0,0.60337202]
[1748602991611,0.46083732,105860.0,105850.0,0.6871112]
[1748602991823,0.43870219,105860.0,105850.0,0.68164143]
[1748602992027,0.45759444,105860.0,105850.0,0.68164143]
[1748602992450,0.25399283,105860.0,105850.0,0.69108813]
[1748602992659,0.25399283,105860.0,105850.0,0.68164143]
[1748602992660,0.46081385,105860.0,105850.0,0.68164143]
[1748602992876,0.46081385,105860.0,105850.0,0.6579505]
[1748602993103,0.27188463,105860.0,105850.0,0.6683972]
[1748602993312,0.249224,105860.0,105850.0,1.265392]
[1748602993535,0.20578772,105860.0,105850.0,1.265392]
[1748602993748,0.15090601,105860.0,105850.0,1.265392]
[1748602993950,0.16035182,105860.0,105850.0,1.265392]
[1748602994167,0.16035173,105860.0,105850.0,1.265392]
[1748602994590,0.1294779,105860.0,105850.0,1.264392]
[1748602994794,0.12947772,105860.0,105850.0,1.264392]
[1748602995003,0.12003182,105860.0,105850.0,1.267392]
[1748602995640,0.12003182,105860.0,105850.0,1.26734784]
[1748602995844,0.12003182,105860.0,105850.0,1.27034784]
[1748602996051,0.12947781,105860.0,105850.0,1.27034784]
[1748602996907,0.12003182,105860.0,105850.0,1.27034784]
[1748602997106,0.12947772,105860.0,105850.0,1.27034784]
[1748602997734,0.1389238,105860.0,105850.0,1.27034784]
[1748602997948,0.12947772,105860.0,105850.0,1.27034784]
[1748602998158,0.1389238,105860.0,105850.0,1.27034784]
[1748602998423,0.12947772,105860.0,105850.0,1.56306784]
[1748602999095,0.1389238,105860.0,105850.0,1.56306784]
[1748602999304,0.12947772,105860.0,105850.0,1.56306784]
[1748602999721,0.12947772,105860.0,105850.0,1.52242265]
[1748602999933,0.1389238,105860.0,105850.0,1.56303463]
[1748603000206,0.12947772,105860.0,105850.0,1.56303463]
[1748603000497,0.13892371,105860.0,105850.0,1.56303463]
[1748603001163,0.32785248,105860.0,105850.0,1.14112693]
[1748603001383,0.32785248,105860.0,105850.0,0.86401371]
[1748603001384,0.39425439,105860.0,105850.0,0.86401371]
[1748603001601,0.39425439,105860.0,105850.0,0.57121371]
[1748603001840,0.39425439,105860.0,105850.0,0.83161353]
[1748603002081,0.39425439,105860.0,105850.0,1.32280748]
[1748603002507,0.3848084,105860.0,105850.0,1.32280748]
[1748603003400,0.3848084,105860.0,105850.0,1.33225463]
[1748603003600,0.3848084,105860.0,105850.0,1.35256438]
[1748603004012,0.3848084,105860.0,105850.0,1.38566346]
[1748603004638,0.3848084,105860.0,105850.0,1.37621631]
[1748603005674,0.37536214,105860.0,105850.0,1.17782236]
[1748603006099,0.37536214,105860.0,105850.0,1.36676898]
[1748603006324,0.37536214,105860.0,105850.0,1.37621631]
[1748603006535,0.37536214,105860.0,105850.0,1.08357631]
[1748603007437,0.37536214,105860.0,105850.0,1.37605631]
[1748603007643,0.37536214,105860.0,105850.0,1.37601631]
[1748603008320,0.37536214,105860.0,105850.0,1.17761823]
[1748603008525,0.37536214,105860.0,105850.0,1.14671823]
[1748603009002,0.37536214,105860.0,105850.0,0.85427823]
[1748603010024,0.37536214,105860.0,105850.0,1.35148485]
[1748603010211,0.37536214,105860.0,105850.0,1.36708485]
[1748603010457,0.37536214,105860.0,105850.0,1.02708485]
[1748603010703,0.37536214,105860.0,105850.0,1.03653218]
[1748603010920,0.29951478,105860.0,105850.0,1.03653218]
[1748603011775,0.2773799,105860.0,105850.0,1.03653218]
[1748603012474,0.2773799,105860.0,105850.0,1.17813823]
[1748603012664,0.2773799,105860.0,105850.0,0.85429152]
[1748603012912,0.2773799,105860.0,105850.0,1.05268547]
[1748603013129,0.2773799,105860.0,105850.0,1.34500547]
[1748603013380,0.2773799,105860.0,105850.0,0.85429152]
[1748603013606,0.3093799,105860.0,105850.0,0.45429152]
[1748603013835,0.47628121,105860.0,105850.0,0.06074787]
[1748603014061,0.47628121,105860.0,105850.0,0.04581843]
[1748603014271,0.47628121,105860.0,105850.0,0.38581843]
[1748603015880,0.47628121,105860.0,105850.0,0.04581843]
[1748603016561,0.44428121,105860.0,105850.0,0.04581843]
[1748603016785,0.44428121,105860.0,105850.0,0.36562629]
[1748603017006,0.44428121,105860.0,105850.0,0.40075114]
[1748603017668,0.35322726,105860.0,105850.0,0.58969776]
[1748603017888,0.28682616,105860.0,105850.0,0.08103147]
[1748603018315,0.28682616,105860.0,105850.0,0.35600137]
[1748603018316,0.30571849,105860.0,105850.0,0.35600137]
[1748603018530,0.30571849,105860.0,105850.0,0.99532682]
[1748603018754,0.30571849,105860.0,105850.0,0.98039738]
[1748603019400,0.30571849,105860.0,105850.0,1.38039738]
[1748603019870,0.2962725,105860.0,105850.0,1.37095041]
[1748603020762,0.08845113,105860.0,105850.0,1.37095041]
[1748603021020,0.07523724,105860.0,105850.0,1.49188854]
[1748603021235,0.04124857,105860.0,105850.0,1.49186406]
[1748603021454,0.05069438,105860.0,105850.0,1.49186406]
[1748603021870,0.04124857,105860.0,105850.0,1.49186406]
[1748603022348,0.05069438,105860.0,105850.0,1.49186406]
[1748603023427,0.04124857,105860.0,105850.0,1.49186406]
[1748603023859,0.05069438,105860.0,105850.0,1.49186406]
[1748603025404,0.06014037,105860.0,105850.0,1.49187182]
[1748603025619,0.06014028,105860.0,105850.0,1.49187182]
[1748603026313,0.05069438,105860.0,105850.0,1.49187182]
[1748603026955,0.3249165,105860.0,105850.0,0.80625129]
[1748603027172,0.34717132,105860.0,105850.0,0.43934229]
[1748603027404,0.34717132,105860.0,105850.0,0.11429576]
[1748603027624,0.34717132,105860.0,105850.0,0.04581411]
[1748603027625,0.43822527,105860.0,105850.0,0.04581411]
[1748603028260,0.43822527,105860.0,105850.0,0.04582231]
[1748603029846,0.43822527,105860.0,105850.0,0.04582373]
[1748603030694,0.36237791,105860.0,105850.0,0.04582373]
[1748603031133,0.36237791,105860.0,105850.0,0.4007772]
[1748603033897,0.36237791,105860.0,105850.0,0.38057976]
[1748603034111,0.36237791,105860.0,105850.0,0.40077144]
[1748603034325,0.36237791,105860.0,105850.0,0.38581797]
[1748603036490,0.43822527,105860.0,105850.0,0.38581797]
[1748603036923,0.43822527,105860.0,105850.0,0.04581797]
[1748603037342,0.43822527,105860.0,105850.0,0.03460037]
[1748603038217,0.43822527,105860.0,105850.0,0.02562629]
[1748603038431,0.43822527,105860.0,105850.0,0.03460234]
[1748603040990,0.43822527,105860.0,105850.0,0.04336783]
[1748603041199,0.43822527,105860.0,105850.0,0.03460234]
[1748603041469,0.43822527,105860.0,105850.0,0.04336603]
[1748603041682,0.43822527,105860.0,105850.0,0.02439598]
[1748603042117,0.52878527,105860.0,105850.0,0.02439609]
[1748603042328,0.52878527,105860.0,105850.0,0.02439559]
[1748603042539,0.52878527,105860.0,105850.0,0.02139559]
[1748603042812,0.52878527,105860.0,105850.0,0.02339559]
[1748603043032,0.52878527,105860.0,105850.0,0.02039482]
[1748603043550,0.52878527,105860.0,105850.0,0.01363097]
[1748603043551,0.34647791,105860.0,105850.0,0.01363097]
[1748603043765,0.23962396,105860.0,105850.0,0.55379673]
[1748603043980,0.23017797,105860.0,105850.0,0.39495011]
[1748603044193,0.23017797,105860.0,105850.0,0.36485011]
[1748603044412,0.23017797,105860.0,105850.0,0.39560358]
[1748603044628,0.23017797,105860.0,105850.0,0.46042724]
[1748603045339,0.23017797,105860.0,105850.0,0.46041302]
[1748603045984,0.23017797,105860.0,105850.0,0.36483589]
[1748603046656,0.23017797,105860.0,105850.0,0.46062081]
[1748603047087,0.23017797,105860.0,105850.0,0.39723589]
[1748603047301,0.23017797,105860.0,105850.0,0.4162597]
[1748603048081,0.23017797,105860.0,105850.0,0.38386199]
[1748603049698,0.23017797,105860.0,105850.0,0.38386366]
[1748603053636,0.23017797,105860.0,105850.0,0.39881713]
[1748603054072,0.33652533,105860.0,105850.0,0.39881713]
[1748603056581,0.33652533,105860.0,105850.0,0.38760369]
[1748603057859,0.32152533,105860.0,105850.0,0.38760369]
[1748603058132,0.33712533,105860.0,105850.0,0.38760369]
[1748603058764,0.33712533,105860.0,105850.0,0.39884068]
[1748603058969,0.33712533,105860.0,105850.0,0.38760369]
[1748603059624,0.42817928,105860.0,105850.0,0.38760369]
[1748603059841,0.42817928,105860.0,105850.0,0.0438881]
[1748603060059,0.51905928,105860.0,105850.0,0.0526699]
[1748603060257,0.51905928,105860.0,105850.0,0.04143228]
[1748603060955,0.51905928,105860.0,105850.0,0.03265022]
[1748603061174,0.51905928,105860.0,105850.0,0.04143291]
[1748603061388,0.51905928,105860.0,105850.0,0.022409]
[1748603061811,0.51905928,105860.0,105850.0,0.02240992]
[1748603062103,0.51905928,105860.0,105850.0,0.02240825]
[1748603062354,0.51905928,105860.0,105850.0,0.03140187]
[1748603062578,0.51905928,105860.0,105850.0,0.02243222]
[1748603062800,0.51905928,105860.0,105850.0,0.01364928]
[1748603063255,0.51905928,105860.0,105850.0,0.02243234]
[1748603063480,0.51905928,105860.0,105850.0,0.0224303]
[1748603063697,0.51905928,105860.0,105850.0,0.02243049]
[1748603063933,0.51905928,105860.0,105850.0,0.01364928]
[1748603064689,0.51905928,105860.0,105850.0,0.02243036]
[1748603065561,0.51905928,105860.0,105850.0,0.02242871]
[1748603065789,0.51905928,105860.0,105850.0,0.01364928]
[1748603066047,0.51905928,105860.0,105850.0,0.02242892]
[1748603066273,0.51905928,105860.0,105850.0,0.02242909]
[1748603066704,0.51905928,105860.0,105850.0,0.02242501]
[1748603066925,0.51905928,105860.0,105850.0,0.02242382]
[1748603067347,0.51905928,105860.0,105850.0,0.02242227]
[1748603068639,0.51905928,105860.0,105850.0,0.02241987]
[1748603068853,0.51905928,105860.0,105850.0,0.02241914]
[1748603069309,0.51905928,105860.0,105850.0,0.02241869]
[1748603069757,0.51905928,105860.0,105850.0,0.02241874]
[1748603070171,0.51905928,105860.0,105850.0,0.02241831]
[1748603070392,0.51905928,105860.0,105850.0,0.02241833]
[1748603070814,0.51905928,105860.0,105850.0,0.0136452]
[1748603071487,0.35233192,105860.0,105850.0,0.022418]
[1748603071707,0.32123192,105860.0,105850.0,0.0456452]
[1748603072130,0.32123192,105860.0,105850.0,0.05688213]
[1748603075173,0.32123192,105860.0,105850.0,0.02488213]
[1748603075606,0.32123192,105860.0,105850.0,0.04340677]
[1748603075820,0.33703192,105860.0,105850.0,0.03216984]
[1748603076302,0.32123192,105860.0,105850.0,0.03216984]
[1748603076533,0.23017797,105860.0,105850.0,0.41430677]
[1748603079443,0.23017797,105860.0,105850.0,0.41428778]
[1748603081867,0.23017797,105860.0,105850.0,0.42924125]
[1748603082275,0.23017797,105860.0,105850.0,0.49412092]
[1748603082707,0.23017797,105860.0,105850.0,0.42924125]
[1748603083126,0.23017797,105860.0,105850.0,0.41428778]
[1748603083537,0.30602533,105860.0,105850.0,0.41428778]
[1748603083759,0.30602533,105860.0,105850.0,0.38338922]
[1748603084022,0.42827928,105860.0,105850.0,0.38338922]
[1748603091517,0.42827928,105860.0,105850.0,0.03216204]
[1748603091994,0.42827928,105860.0,105850.0,0.04093786]
[1748603092882,0.42827928,105860.0,105850.0,0.04094006]
[1748603093529,0.42827928,105860.0,105850.0,0.04194046]
[1748603093747,0.42827928,105860.0,105850.0,0.04194043]
[1748603094715,0.42827928,105860.0,105850.0,0.04194076]
[1748603094940,0.42827928,105860.0,105850.0,0.04194144]
[1748603095846,0.42827928,105860.0,105850.0,0.04194193]
[1748603096325,0.42827928,105860.0,105850.0,0.04253974]
[1748603096575,0.42827928,105860.0,105850.0,0.03375946]
[1748603096821,0.42827928,105860.0,105850.0,0.04255128]
[1748603097039,0.42827928,105860.0,105850.0,0.04255151]
[1748603097480,0.42827928,105860.0,105850.0,0.04248021]
[1748603097695,0.42827928,105860.0,105850.0,0.04248023]
[1748603098124,0.42827928,105860.0,105850.0,0.04248045]
[1748603098591,0.42827928,105860.0,105850.0,0.0424813]
[1748603098845,0.42827928,105860.0,105850.0,0.04241848]
[1748603099326,0.42827928,105860.0,105850.0,0.04241968]
[1748603100409,0.42827928,105860.0,105850.0,0.04242071]
[1748603100624,0.42827928,105860.0,105850.0,0.04242045]
[1748603100848,0.72111928,105860.0,105850.0,0.0336361]
[1748603101085,0.72111928,105860.0,105850.0,0.04242167]
[1748603101296,0.72111928,105860.0,105850.0,0.0536623]
[1748603101984,0.72111928,105860.0,105850.0,0.05366226]
[1748603102201,0.72111928,105860.0,105850.0,0.05366223]
[1748603102640,0.72111928,105860.0,105850.0,0.04487673]
[1748603102860,0.72111928,105860.0,105850.0,0.05366249]
[1748603103333,0.72111928,105860.0,105850.0,0.04242186]
[1748603103546,0.72111928,105860.0,105850.0,0.0336361]
[1748603103978,0.72111928,105860.0,105850.0,0.04242625]
[1748603104675,0.72111928,105860.0,105850.0,0.04242617]
[1748603105868,0.72111928,105860.0,105850.0,0.0424266]
[1748603106325,0.32123192,105860.0,105850.0,0.04242649]
[1748603106557,0.32123192,105860.0,105850.0,0.06514076]
[1748603106795,0.32123192,105860.0,105850.0,0.09134068]
[1748603107086,0.32123192,105860.0,105850.0,0.49627191]
[1748603107518,0.32123192,105860.0,105850.0,0.43134068]
[1748603108196,0.32123192,105860.0,105850.0,0.43133477]
[1748603108532,0.32123192,105860.0,105850.0,0.39983477]
[1748603109417,0.32123192,105860.0,105850.0,0.43183477]
[1748603111634,0.32123192,105860.0,105850.0,0.14552394]
[1748603111859,0.32123192,105860.0,105850.0,0.15676757]
[1748603112079,0.32123192,105860.0,105850.0,0.15676721]
[1748603112364,0.32123192,105860.0,105850.0,0.15676906]
[1748603112586,0.32123192,105860.0,105850.0,0.15677079]
[1748603113928,0.32123192,105860.0,105850.0,0.14552641]
[1748603114359,0.23017797,105860.0,105850.0,0.14552641]
[1748603115871,0.23017797,105860.0,105850.0,0.14788799]
[1748603116134,0.23017797,105860.0,105850.0,0.14552641]
[1748603116786,0.23017797,105860.0,105850.0,0.14552443]
[1748603117670,0.30602533,105860.0,105850.0,0.14552443]
[1748603118107,0.30602533,105860.0,105850.0,0.49676582]
[1748603123623,0.42767928,105860.0,105850.0,0.46476582]
[1748603123844,0.39707928,105860.0,105850.0,0.38487852]
[1748603124262,0.41217928,105860.0,105850.0,0.38487852]
[1748603125098,0.39707928,105860.0,105850.0,0.38487852]
[1748603127287,0.23017797,105860.0,105850.0,0.44935678]
[1748603127559,0.23017797,105860.0,105850.0,0.49607188]
[1748603127827,0.23017797,105860.0,105850.0,0.48483049]
[1748603128958,0.23017797,105860.0,105850.0,0.45165223]
[1748603129406,0.23017797,105860.0,105850.0,0.43669876]
[1748603129849,0.208043,105860.0,105850.0,0.46845536]
[1748603130111,0.208043,105860.0,105850.0,0.43669373]
[1748603131878,0.01911423,105860.0,105850.0,0.62564035]
[1748603132099,0.01911423,105860.0,105850.0,0.97695476]
[1748603132100,0.04745184,105860.0,105850.0,0.97695476]
[1748603132313,0.23638132,105860.0,105850.0,0.97695494]
[1748603132535,0.23638132,105860.0,105850.0,0.98640164]
[1748603132773,0.23638132,105860.0,105850.0,0.98640173]
[1748603133001,0.23638132,105860.0,105850.0,0.97695494]
[1748603133222,0.22693551,105860.0,105850.0,0.96750806]
[1748603133431,0.22693551,105860.0,105850.0,0.94590144]
[1748603133888,0.22693551,105860.0,105850.0,0.93643649]
[1748603134115,0.21748943,105860.0,105850.0,0.93643658]
[1748603134538,0.21748943,105860.0,105850.0,0.93597328]
[1748603135847,0.20804317,105860.0,105850.0,0.92652622]
[1748603136066,0.19859674,105860.0,105850.0,0.40491236]
[1748603136315,0.19859674,105860.0,105850.0,0.43808552]
[1748603136543,0.19859674,105860.0,105850.0,0.62703214]
[1748603136805,0.19859674,105860.0,105850.0,0.65813214]
[1748603137729,0.20804291,105860.0,105850.0,0.67702671]
[1748603137958,0.21748917,105860.0,105850.0,0.67702671]
[1748603138193,0.21748917,105860.0,105850.0,0.69592534]
[1748603138420,0.21748917,105860.0,105850.0,0.68694176]
[1748603138876,0.21748917,105860.0,105850.0,0.66321354]
[1748603139124,0.21748917,105860.0,105850.0,0.69638689]
[1748603139376,0.21748917,105860.0,105850.0,0.65376657]
[1748603139625,0.208043,105860.0,105850.0,0.66321363]
[1748603139841,0.208043,105860.0,105850.0,0.69638549]
[1748603140060,0.208043,105860.0,105850.0,0.68693843]
[1748603140985,0.208043,105860.0,105850.0,0.6963854]
[1748603141210,0.208043,105860.0,105850.0,0.66321363]
[1748603141937,0.208043,105860.0,105850.0,0.6726606]
[1748603142616,0.208043,105860.0,105850.0,0.67264693]
[1748603143580,0.208043,105860.0,105850.0,0.66319996]
[1748603143805,0.208043,105860.0,105850.0,0.69636556]
[1748603144910,0.208043,105860.0,105850.0,0.70581253]
[1748603145134,0.208043,105860.0,105850.0,0.70581288]
[1748603146252,0.22693533,105860.0,105850.0,0.6942531]
[1748603146504,0.22693533,105860.0,105850.0,0.70369998]
[1748603146954,0.22693533,105860.0,105850.0,0.70368275]
[1748603147199,0.22693533,105860.0,105850.0,0.7036823]
[1748603147766,0.22693533,105860.0,105850.0,0.69423551]
[1748603148839,0.22693533,105860.0,105850.0,0.97618863]
[1748603149495,0.21748934,105860.0,105850.0,0.97618863]
[1748603149733,0.19535507,105860.0,105850.0,0.97618863]
[1748603150407,0.19535507,105860.0,105850.0,0.96674166]
[1748603151242,0.19535507,105860.0,105850.0,0.96674573]
[1748603151861,0.19535507,105860.0,105850.0,0.65645152]
[1748603152063,0.18590881,105860.0,105850.0,0.92624535]
[1748603152307,0.18590881,105860.0,105850.0,0.93569259]
[1748603152509,0.18590881,105860.0,105850.0,0.94513956]
[1748603153777,0.18590881,105860.0,105850.0,0.93569259]
[1748603154191,0.17646247,105860.0,105850.0,0.6967514]
[1748603154610,0.17646247,105860.0,105850.0,0.88569802]
[1748603154841,0.17646247,105860.0,105850.0,0.4053514]
[1748603155053,0.28320983,105860.0,105850.0,0.4053514]
[1748603155482,0.25230983,105860.0,105850.0,0.40535924]
[1748603157215,0.28410983,105860.0,105850.0,0.43852524]
[1748603157938,0.28410983,105860.0,105850.0,0.11351806]
[1748603158145,0.28410983,105860.0,105850.0,0.11305476]
[1748603158558,0.28410983,105860.0,105850.0,0.09806194]
[1748603159479,0.28410983,105860.0,105850.0,0.11305617]
[1748603159696,0.28410983,105860.0,105850.0,0.4530876]
[1748603160352,0.28410983,105860.0,105850.0,0.43809337]
[1748603161647,0.25230983,105860.0,105850.0,0.43850149]
[1748603161882,0.17646247,105860.0,105850.0,0.43850149]